bitfinex/quotes_BTCUSD_20250316
["timestamp","ask_amount","ask_price","bid_price","bid_amount"]
[1742161762095,0.012063,82896.0,82884.0,0.0474694]
[1742161762096,0.205091,82890.0,82884.0,0.0001694]
[1742161762268,0.193034,82887.0,82884.0,0.0001694]
[1742161762527,0.01766895,82889.0,82884.0,0.2052744]
[1742161762735,0.205094,82889.0,82884.0,0.0122344]
[1742161762938,0.00560495,82888.0,82884.0,0.0122344]
[1742161763056,0.00560495,82888.0,82884.0,0.2092744]
[1742161764302,0.02451399,82888.0,82884.0,0.2092744]
[1742161764500,0.02451399,82888.0,82884.0,0.0122344]
[1742161765358,0.205097,82887.0,82884.0,0.00029343]
[1742161765573,0.012064,82886.0,82884.0,0.00029343]
[1742161765784,0.01761923,82886.0,82884.0,0.00029343]
[1742161766602,0.00555523,82886.0,82884.0,0.00029343]
[1742161767251,0.01761923,82886.0,82884.0,0.00129343]
[1742161767988,0.205102,82885.0,82884.0,0.00129343]
[1742161768588,0.01761923,82885.0,82884.0,0.00129343]
[1742161769166,0.01861923,82885.0,82884.0,0.00129343]
[1742161769384,0.00655523,82885.0,82884.0,0.00029343]
[1742161769625,0.00555523,82885.0,82884.0,0.00029343]
[1742161769979,0.00755523,82885.0,82884.0,0.00029343]
[1742161770403,0.004,82885.0,82884.0,0.00029343]
[1742161770607,0.02161923,82885.0,82884.0,0.00029343]
[1742161770804,0.00755523,82885.0,82884.0,0.00029343]
[1742161771015,0.002,82885.0,82884.0,0.00029343]
[1742161771277,0.004,82885.0,82884.0,0.00029343]
[1742161771448,0.004,82885.0,82884.0,0.01235843]
[1742161771852,0.06210351,82885.0,82884.0,0.01235843]
[1742161772057,0.06010351,82885.0,82884.0,0.01235843]
[1742161772245,0.06310351,82885.0,82884.0,0.01235843]
[1742161772844,0.06010351,82885.0,82884.0,0.01235843]
[1742161773382,0.0263475,82885.0,82884.0,0.01235843]
[1742161775719,0.0263475,82885.0,82884.0,0.20539843]
[1742161775902,0.04525668,82885.0,82884.0,0.20539843]
[1742161777004,0.02290918,82885.0,82884.0,1.70539843]
[1742161777203,0.37977574,82885.0,82884.0,0.00029343]
[1742161777611,0.3845335,82885.0,82884.0,0.00029343]
[1742161778211,0.3825335,82885.0,82884.0,0.00029343]
[1742161778646,0.3855335,82885.0,82884.0,0.00029343]
[1742161779587,0.3835335,82885.0,82884.0,0.00029343]
[1742161779790,0.3865335,82885.0,82884.0,0.00029343]
[1742161780125,0.40887924,82885.0,82884.0,0.00029343]
[1742161780466,0.56703012,82885.0,82884.0,0.00029343]
[1742161781067,0.86703012,82885.0,82884.0,0.00029343]
[1742161781267,0.72779012,82885.0,82884.0,0.00029343]
[1742161781469,0.90269916,82885.0,82884.0,0.00029343]
[1742161781686,0.88378828,82885.0,82884.0,0.00029343]
[1742161781887,0.88374828,82885.0,82884.0,0.00029343]
[1742161782115,0.88074828,82885.0,82884.0,0.00029343]
[1742161782268,0.88679564,82885.0,82884.0,7.3e-05]
[1742161782501,0.88879564,82885.0,82884.0,7.3e-05]
[1742161782706,0.88274828,82885.0,82884.0,7.3e-05]
[1742161782888,0.88774828,82885.0,82884.0,7.3e-05]
[1742161783465,0.88838828,82885.0,82884.0,7.3e-05]
[1742161783874,0.91504248,82885.0,82884.0,7.3e-05]
[1742161784092,0.91784248,82885.0,82884.0,7.3e-05]
[1742161784293,0.89118828,82885.0,82884.0,7.3e-05]
[1742161784469,0.89134828,82885.0,82884.0,0.0002424]
[1742161784790,0.88634828,82885.0,82884.0,0.0002424]
[1742161785108,0.89134828,82885.0,82884.0,0.0002424]
[1742161785368,0.205143,82869.0,82867.0,0.0001695]
[1742161785543,0.012067,82868.0,82867.0,0.00029316]
[1742161785744,0.01681738,82868.0,82867.0,0.00029316]
[1742161786146,0.02286465,82868.0,82867.0,0.00029316]
[1742161786785,0.11767005,82868.0,82867.0,0.00029316]
[1742161786925,0.10560305,82868.0,82867.0,0.01236016]
[1742161787390,0.10560305,82868.0,82867.0,0.00029316]
[1742161787942,0.06989243,82868.0,82867.0,0.00029316]
[1742161788141,0.07189243,82868.0,82867.0,0.00029316]
[1742161791484,0.06584516,82868.0,82867.0,0.00029316]
[1742161792178,0.08475797,82868.0,82867.0,0.00029316]
[1742161793257,0.03009612,82868.0,82867.0,0.00029316]
[1742161796237,0.04900902,82868.0,82867.0,0.19337316]
[1742161796479,0.03009612,82868.0,82867.0,0.20544016]
[1742161797485,0.03009612,82868.0,82867.0,0.01236016]
[1742161800073,0.04900878,82868.0,82867.0,0.01236016]
[1742161801049,0.03009612,82868.0,82867.0,0.01236016]
[1742161803835,0.03009612,82868.0,82867.0,1.51236016]
[1742161804138,0.02534574,82868.0,82867.0,1.51236016]
[1742161807689,0.02334574,82868.0,82867.0,1.51236016]
[1742161808449,0.02234574,82868.0,82867.0,1.51236016]
[1742161808855,0.02334574,82868.0,82867.0,1.51236016]
[1742161809068,0.02234574,82868.0,82867.0,1.51236016]
[1742161812622,0.0013307,82884.0,82867.0,1.51236016]
[1742161812825,0.0013307,82884.0,82883.0,0.012065]
[1742161813170,0.0003382,82884.0,82883.0,0.012065]
[1742161813576,0.0003382,82884.0,82883.0,0.02442917]
[1742161813893,0.02677276,82884.0,82883.0,0.02442917]
[1742161814093,0.02677276,82884.0,82883.0,0.21747217]
[1742161814537,0.02277276,82884.0,82883.0,0.21747217]
[1742161814741,0.02677276,82884.0,82883.0,0.21747217]
[1742161815542,0.02677276,82884.0,82883.0,0.205108]
[1742161815743,0.04568246,82884.0,82883.0,0.205108]
[1742161815954,0.04968246,82884.0,82883.0,0.205108]
[1742161816149,0.04968246,82884.0,82883.0,0.21721166]
[1742161817080,0.0272479,82884.0,82883.0,0.21721166]
[1742161817975,0.0232479,82884.0,82883.0,0.21721166]
[1742161818179,0.0262479,82884.0,82883.0,0.21721166]
[1742161818765,0.0222479,82884.0,82883.0,1.71841802]
[1742161819003,0.0222479,82884.0,82883.0,1.71721166]
[1742161819162,0.0242479,82884.0,82883.0,1.71721166]
[1742161819364,0.0053382,82884.0,82883.0,1.71721166]
[1742161821338,0.0023382,82884.0,82883.0,1.71721166]
[1742161821993,0.0003382,82884.0,82883.0,1.71721166]
[1742161822200,0.0003382,82884.0,82883.0,1.73175251]
[1742161822503,2e-07,82884.0,82883.0,1.73192161]
[1742161823606,2e-07,82884.0,82883.0,1.93389664]
[1742161824923,4e-07,82885.0,82884.0,0.02660585]
[1742161825124,4e-07,82885.0,82884.0,0.22978695]
[1742161825645,4e-07,82885.0,82884.0,2.08098695]
[1742161825845,0.0009926,82912.0,82911.0,0.205039]
[1742161826249,0.0003388,82915.0,82914.0,0.205031]
[1742161826638,0.0003388,82915.0,82914.0,1.705031]
[1742161827222,0.00046276,82915.0,82914.0,1.705031]
[1742161827429,0.00046276,82915.0,82914.0,1.7173445]
[1742161829615,0.00046276,82915.0,82914.0,1.7213445]
[1742161830734,0.00046276,82915.0,82914.0,1.709031]
[1742161830941,0.00046276,82915.0,82914.0,0.01606]
[1742161831141,0.13982276,82915.0,82914.0,0.004]
[1742161831303,0.1454348,82915.0,82914.0,0.004]
[1742161831504,0.16775786,82915.0,82914.0,0.004]
[1742161831970,0.16775786,82915.0,82914.0,0.002]
[1742161832268,0.16975786,82915.0,82914.0,0.002]
[1742161832606,0.012061,82910.0,82905.0,0.205052]
[1742161833015,0.00481032,82909.0,82905.0,0.205052]
[1742161833219,0.00481032,82909.0,82906.0,0.012061]
[1742161833418,0.01206,82913.0,82907.0,0.192987]
[1742161833659,0.00481032,82908.0,82907.0,0.205048]
[1742161833884,0.01206,82913.0,82907.0,0.205048]
[1742161834314,0.00474991,82912.0,82909.0,0.205043]
[1742161834532,0.01890392,82912.0,82909.0,0.205043]
[1742161834945,0.00480816,82911.0,82909.0,0.205043]
[1742161835821,0.02233345,82910.0,82909.0,0.205043]
[1742161836402,0.02714161,82910.0,82909.0,0.205043]
[1742161838318,0.02714161,82910.0,82909.0,0.012061]
[1742161838561,0.02714161,82910.0,82908.0,0.012061]
[1742161839143,0.02714161,82910.0,82907.0,0.205048]
[1742161840089,0.02233345,82909.0,82907.0,0.205048]
[1742161840444,0.00480286,82908.0,82907.0,0.205048]
[1742161841674,0.02713631,82908.0,82907.0,0.205048]
[1742161842250,0.02713631,82908.0,82907.0,0.206048]
[1742161843558,0.02713631,82908.0,82907.0,0.207048]
[1742161844350,0.02233345,82908.0,82907.0,0.207048]
[1742161848487,0.02713631,82908.0,82907.0,0.207048]
[1742161850643,0.02233345,82908.0,82907.0,0.207048]
[1742161857522,0.02713079,82908.0,82907.0,1.707048]
[1742161857698,0.02233345,82908.0,82907.0,1.707048]
[1742161858207,0.02233345,82908.0,82907.0,1.7072171]
[1742161858790,0.02233345,82908.0,82907.0,0.2072171]
[1742161859153,0.02713079,82908.0,82907.0,0.2072171]
[1742161859552,0.02233345,82908.0,82907.0,0.2072171]
[1742161861501,0.02713079,82908.0,82907.0,0.2072171]
[1742161862108,0.02233345,82908.0,82907.0,0.2072171]
[1742161864962,0.02713079,82908.0,82907.0,0.2072171]
[1742161865371,0.02233345,82908.0,82907.0,0.2072171]
[1742161867010,0.02713079,82908.0,82907.0,0.2072171]
[1742161867324,0.00479734,82908.0,82907.0,0.2072171]
[1742161867612,0.01924212,82912.0,82911.0,0.205039]
[1742161867845,0.02404184,82912.0,82911.0,0.205039]
[1742161868940,0.02504184,82912.0,82911.0,0.205039]
[1742161869250,0.04752398,82912.0,82911.0,0.205039]
[1742161870250,0.02604184,82912.0,82911.0,0.205039]
[1742161871569,0.02124212,82912.0,82911.0,0.205039]
[1742161872869,0.04851831,82912.0,82911.0,0.205039]
[1742161873506,0.04371859,82912.0,82911.0,0.205039]
[1742161873668,0.02124212,82912.0,82911.0,0.205039]
[1742161876396,0.02604184,82912.0,82911.0,0.205039]
[1742161877119,0.02124212,82912.0,82911.0,0.205039]
[1742161878817,0.02604184,82912.0,82911.0,0.205039]
[1742161879173,0.02124212,82912.0,82911.0,0.205039]
[1742161883392,0.02124212,82912.0,82911.0,0.2052081]
[1742161885855,0.02604184,82912.0,82911.0,0.2052081]
[1742161886258,0.0023382,82912.0,82911.0,0.2052081]
[1742161889626,0.02124197,82912.0,82911.0,0.2052081]
[1742161890692,0.0023382,82912.0,82911.0,0.2052081]
[1742161898996,0.0023382,82912.0,82911.0,1.7052081]
[1742161899743,0.0023382,82912.0,82911.0,0.2052081]
[1742161905456,0.0003382,82912.0,82911.0,0.2052081]
[1742161905991,0.0003382,82912.0,82911.0,0.2062081]
[1742161906910,0.0003382,82912.0,82911.0,0.2072081]
[1742161909380,0.0003382,82912.0,82911.0,0.2022081]
[1742161916273,0.0003382,82912.0,82911.0,0.2791081]
[1742161917787,0.0003382,82912.0,82911.0,1.7791081]
[1742161921435,0.0003382,82912.0,82911.0,1.7781081]
[1742161921641,0.0003382,82912.0,82911.0,1.7771081]
[1742161921919,0.0003382,82912.0,82911.0,1.7811081]
[1742161924666,0.0003382,82912.0,82911.0,1.80498133]
[1742161927907,0.0003382,82912.0,82911.0,0.30498133]
[1742161928478,0.0003382,82912.0,82911.0,1.80498133]
[1742161939392,9.6e-07,82915.0,82914.0,0.205031]
[1742161939604,9.6e-07,82915.0,82914.0,0.55169255]
[1742161939851,9.6e-07,82915.0,82914.0,0.60028688]
[1742161940067,9.6e-07,82915.0,82914.0,2.10028688]
[1742161940657,9.6e-07,82915.0,82914.0,2.10228688]
[1742161941073,9.6e-07,82915.0,82914.0,2.10628688]
[1742161941398,9.6e-07,82915.0,82914.0,2.10928688]
[1742161941619,9.6e-07,82915.0,82914.0,2.11128688]
[1742161943155,1.6e-07,82915.0,82914.0,2.11128688]
[1742161947870,1.6e-07,82915.0,82914.0,2.41128688]
[1742161948050,1.6e-07,82915.0,82914.0,2.53828688]
[1742161948850,1.6e-07,82915.0,82914.0,2.58828688]
[1742161949671,1.6e-07,82915.0,82914.0,2.58628688]
[1742161949833,1.6e-07,82915.0,82914.0,2.58228688]
[1742161950041,1.6e-07,82915.0,82914.0,2.59228688]
[1742161951501,0.0003388,82926.0,82925.0,0.41611988]
[1742161951886,8e-07,82926.0,82925.0,1.91611988]
[1742161952344,8e-07,82926.0,82925.0,1.91911988]
[1742161953671,8e-07,82926.0,82925.0,1.92211988]
[1742161954166,8e-07,82926.0,82925.0,1.91911988]
[1742161954563,8e-07,82926.0,82925.0,1.92311988]
[1742161954750,8e-07,82926.0,82925.0,1.84611988]
[1742161955800,8e-07,82926.0,82925.0,1.84628898]
[1742161959003,8e-07,82926.0,82925.0,1.87072633]
[1742161970921,8e-07,82926.0,82925.0,2.17072633]
[1742161972769,8e-07,82926.0,82925.0,2.22072633]
[1742161981513,8e-07,82926.0,82925.0,2.34812633]
[1742161982473,8e-07,82926.0,82925.0,2.34412633]
[1742161982683,8e-07,82926.0,82925.0,2.38184365]
[1742161982884,8e-07,82926.0,82925.0,2.38484365]
[1742161983043,8e-07,82926.0,82925.0,2.39084365]
[1742161983238,8e-07,82926.0,82925.0,2.38484365]
[1742161983463,8e-07,82926.0,82925.0,2.37884365]
[1742161983662,8e-07,82926.0,82925.0,2.38484365]
[1742161984783,8e-07,82926.0,82925.0,2.39084365]
[1742161990808,8e-07,82926.0,82925.0,2.26344365]
[1742161995336,8e-07,82926.0,82925.0,2.34484365]
[1742161996247,8e-07,82926.0,82925.0,2.26344365]
[1742161997450,8e-07,82926.0,82925.0,2.2489028]
[1742162012959,1e-06,82926.0,82925.0,2.2489028]
[1742162013547,1e-06,82926.0,82925.0,2.3843828]
[1742162013875,1e-06,82926.0,82925.0,2.39892365]
[1742162016704,1e-06,82926.0,82925.0,2.39892365]
[1742162024544,1e-06,82926.0,82925.0,2.26344365]
[1742162024785,1e-06,82926.0,82925.0,2.39892365]
[1742162059205,1e-06,82926.0,82925.0,2.81562365]
[1742162062581,9e-07,82942.0,82941.0,0.204964]
[1742162062797,2.3e-07,82942.0,82941.0,0.46118445]
[1742162063061,2.3e-07,82942.0,82941.0,0.45997903]
[1742162063348,2.3e-07,82942.0,82941.0,1.95997903]
[1742162063809,2.3e-07,82956.0,82955.0,0.204929]
[1742162063955,2.3e-07,82956.0,82955.0,0.46114932]
[1742162064159,0.0003386,82980.0,82962.0,0.192857]
[1742162064501,0.0466,82969.0,82964.0,0.204907]
[1742162065216,0.02280369,82965.0,82964.0,1.71705619]
[1742162066918,0.02280369,82965.0,82964.0,1.72005619]
[1742162067502,6.9e-07,82965.0,82964.0,2.07005619]
[1742162067715,8.9e-07,82968.0,82967.0,0.35]
[1742162067917,8.9e-07,82968.0,82967.0,0.19616788]
[1742162068089,8.9e-07,82968.0,82967.0,0.19737285]
[1742162068662,8.9e-07,82968.0,82967.0,1.99737285]
[1742162068850,8.9e-07,82968.0,82967.0,1.99616788]
[1742162070670,8.9e-07,82968.0,82967.0,2.00116788]
[1742162071031,8.9e-07,82968.0,82967.0,2.00616788]
[1742162072354,8.9e-07,82968.0,82967.0,1.95616788]
[1742162072567,8.9e-07,82968.0,82967.0,2.00616788]
[1742162073471,8.9e-07,82968.0,82967.0,1.99616788]
[1742162073685,8.9e-07,82968.0,82967.0,2.00216788]
[1742162074308,8.9e-07,82968.0,82967.0,2.00816788]
[1742162075358,8.9e-07,82968.0,82967.0,1.95816788]
[1742162075556,8.9e-07,82968.0,82967.0,2.00816788]
[1742162075900,8.9e-07,82968.0,82967.0,2.00216788]
[1742162076703,8.9e-07,82968.0,82967.0,2.00816788]
[1742162077108,8.9e-07,82968.0,82967.0,1.95816788]
[1742162077313,8.9e-07,82968.0,82967.0,2.00816788]
[1742162079186,8.9e-07,82968.0,82967.0,2.09086788]
[1742162080236,8.9e-07,82968.0,82967.0,2.09120588]
[1742162082749,8.9e-07,82968.0,82967.0,2.04120588]
[1742162082884,8.9e-07,82968.0,82967.0,2.09120588]
[1742162083488,8.9e-07,82968.0,82967.0,2.04120588]
[1742162083747,8.9e-07,82968.0,82967.0,2.09120588]
[1742162084362,0.0003386,82980.0,82967.0,2.09120588]
[1742162084560,0.0003386,82980.0,82979.0,0.012051]
[1742162084715,0.0003386,82980.0,82979.0,0.147411]
[1742162084950,0.0003386,82980.0,82979.0,0.34023]
[1742162085119,0.0003386,82980.0,82979.0,1.84023]
[1742162087347,0.0003386,82980.0,82979.0,1.84823]
[1742162091651,0.0003386,82980.0,82979.0,1.87240202]
[1742162095681,0.0003386,82980.0,82979.0,1.88155255]
[1742162099765,0.0003386,82980.0,82979.0,2.01566843]
[1742162100808,0.0003386,82980.0,82979.0,2.31566843]
[1742162101369,0.0003386,82980.0,82979.0,2.36566843]
[1742162103834,0.0003386,82980.0,82979.0,2.31566843]
[1742162104025,0.0003386,82980.0,82979.0,2.36566843]
[1742162105628,0.0003386,82980.0,82979.0,2.31566843]
[1742162108329,0.1289386,82980.0,82979.0,0.008]
[1742162108535,0.1289386,82980.0,82968.0,0.0003384]
[1742162108536,0.192843,82969.0,82968.0,0.0003384]
[1742162108657,0.286199,82967.0,82966.0,0.1085106]
[1742162109067,0.29114567,82967.0,82966.0,0.1085106]
[1742162109490,0.29114567,82967.0,82966.0,1.6085106]
[1742162109689,0.29114567,82967.0,82966.0,0.1085106]
[1742162110457,0.29114567,82967.0,82956.0,1.5]
[1742162110458,0.286225,82957.0,82956.0,1.5]
[1742162110962,0.29117167,82957.0,82956.0,1.5]
[1742162111176,0.286225,82957.0,82956.0,1.5]
[1742162111316,0.29117167,82957.0,82956.0,1.5]
[1742162111943,0.29117167,82957.0,82956.0,0.002]
[1742162112306,0.29117167,82957.0,82956.0,0.005]
[1742162113452,0.08624667,82957.0,82956.0,0.005]
[1742162114715,0.09830067,82957.0,82956.0,0.005]
[1742162115685,0.14560067,82957.0,82956.0,0.005]
[1742162115889,0.31778153,82957.0,82956.0,0.005]
[1742162116254,0.61627441,82957.0,82956.0,0.005]
[1742162116526,0.61627441,82957.0,82956.0,0.002]
[1742162116727,0.012058,82932.0,82925.0,0.0001691]
[1742162117058,0.19931517,82931.0,82928.0,0.00041333]
[1742162117177,0.00487679,82931.0,82929.0,1.5]
[1742162117558,0.204994,82929.0,82928.0,0.00041333]
[1742162117758,0.20650148,82929.0,82928.0,0.00041333]
[1742162117876,0.20984576,82929.0,82928.0,0.00041333]
[1742162119482,0.28755324,82929.0,82928.0,0.00141333]
[1742162119687,0.8030195,82929.0,82928.0,0.00141333]
[1742162119899,0.89212632,82929.0,82928.0,0.00141333]
[1742162120102,0.8030195,82929.0,82928.0,0.00141333]
[1742162120327,0.8030195,82929.0,82928.0,0.00041333]
[1742162120707,0.81756035,82929.0,82928.0,0.00041333]
[1742162121020,0.81856035,82929.0,82928.0,0.00041333]
[1742162121164,0.81756035,82929.0,82928.0,0.00041333]
[1742162121595,0.83846287,82929.0,82928.0,0.00041333]
[1742162122453,0.83946287,82929.0,82928.0,0.00041333]
[1742162122951,0.83846287,82929.0,82928.0,0.00041333]
[1742162123352,0.97586287,82929.0,82928.0,0.00041333]
[1742162126523,0.97586287,82929.0,82928.0,0.00041333]
[1742162128883,0.97586287,82929.0,82928.0,0.00058253]
[1742162129535,0.97586287,82929.0,82925.0,6.3e-07]
[1742162129536,0.510001,82926.0,82925.0,6.3e-07]
[1742162129734,0.631901,82926.0,82925.0,3.8e-07]
[1742162129934,0.631901,82926.0,82911.0,0.0001691]
[1742162129935,0.626935,82912.0,82911.0,0.0001691]
[1742162130133,0.94758959,82912.0,82911.0,0.0001691]
[1742162130555,0.95239542,82912.0,82911.0,0.0001691]
[1742162130978,0.81695542,82912.0,82911.0,0.0001691]
[1742162131188,0.95239542,82912.0,82911.0,0.0001691]
[1742162131390,0.81695542,82912.0,82911.0,0.0001691]
[1742162131595,0.95639542,82912.0,82911.0,0.0001691]
[1742162131758,0.82095542,82912.0,82911.0,0.0001691]
[1742162131953,0.95639542,82912.0,82911.0,0.0001691]
[1742162132388,0.81695542,82912.0,82911.0,0.0001691]
[1742162132734,0.95739542,82912.0,82911.0,0.0011691]
[1742162133085,0.96139542,82912.0,82911.0,0.0011691]
[1742162133615,0.9816444,82912.0,82911.0,0.0011691]
[1742162133808,1.00555179,82912.0,82911.0,0.0011691]
[1742162134189,1.77643179,82912.0,82911.0,1e-07]
[1742162134393,1.8146793,82912.0,82911.0,1e-07]
[1742162135019,1.8146793,82912.0,82884.0,0.000338]
[1742162135020,0.2051,82886.0,82884.0,0.000338]
[1742162135176,0.80080464,82886.0,82885.0,0.00029306]
[1742162135380,0.94103098,82886.0,82885.0,0.00029306]
[1742162135795,0.95994317,82886.0,82885.0,0.00029306]
[1742162136134,0.82450317,82886.0,82885.0,0.00029306]
[1742162136311,0.96394317,82886.0,82885.0,0.00029306]
[1742162136751,0.95994317,82886.0,82885.0,0.00029306]
[1742162137129,0.94603098,82886.0,82885.0,0.00029306]
[1742162137333,0.96357183,82886.0,82885.0,0.00029306]
[1742162137533,0.95857183,82886.0,82885.0,0.00029306]
[1742162137792,0.80559098,82886.0,82885.0,0.00029306]
[1742162137996,0.17529098,82886.0,82885.0,0.01235706]
[1742162138123,0.00978634,82886.0,82885.0,1.51235706]
[1742162138323,0.00978634,82886.0,82885.0,1.70539506]
[1742162138568,0.005,82886.0,82885.0,1.70539506]
[1742162139002,0.0009999,82902.0,82899.0,0.193005]
[1742162139185,0.0009999,82902.0,82901.0,0.188001]
[1742162139395,0.192998,82903.0,82900.0,0.193001]
[1742162139653,0.012061,82906.0,82902.0,0.192997]
[1742162139885,0.012061,82906.0,82901.0,0.012062]
[1742162139886,0.192994,82904.0,82901.0,0.193001]
[1742162140026,0.192994,82904.0,82900.0,0.193001]
[1742162140667,0.192997,82903.0,82900.0,0.193001]
[1742162141011,0.192998,82902.0,82900.0,0.193001]
[1742162141232,0.192995,82904.0,82901.0,0.193001]
[1742162141463,0.192997,82903.0,82900.0,0.193002]
[1742162141668,0.192995,82904.0,82900.0,0.193002]
[1742162142107,0.192995,82904.0,82870.0,0.19147943]
[1742162142108,0.000988,82918.0,82917.0,0.01106]
[1742162142288,0.000988,82918.0,82917.0,0.204024]
[1742162142597,0.3,82921.0,82918.0,0.19296]
[1742162142946,0.492954,82921.0,82918.0,0.19296]
[1742162143161,0.492954,82921.0,82918.0,0.19196]
[1742162143647,0.492954,82921.0,82918.0,0.19096]
[1742162144048,0.002,82921.0,82914.0,0.01206]
[1742162144297,0.192959,82919.0,82916.0,0.192964]
[1742162144456,0.304,82921.0,82916.0,0.205024]
[1742162144656,0.192965,82917.0,82913.0,0.192971]
[1742162144924,0.304,82921.0,82920.0,0.012059]
[1742162144925,0.004,82921.0,82920.0,0.012059]
[1742162145269,0.012059,82924.0,82919.0,0.192958]
[1742162145493,0.001,82921.0,82918.0,0.205017]
[1742162145804,0.21285668,82921.0,82918.0,0.205017]
[1742162146039,0.21185668,82921.0,82917.0,0.205023]
[1742162146249,0.01890268,82921.0,82917.0,0.01206]
[1742162146440,0.01890268,82921.0,82920.0,0.192957]
[1742162146621,0.01890268,82921.0,82920.0,0.191957]
[1742162147018,0.01890268,82921.0,82920.0,0.204016]
[1742162147366,0.001,82921.0,82920.0,0.204016]
[1742162147932,0.00664124,82921.0,82920.0,0.204016]
[1742162148147,0.002,82921.0,82920.0,0.204016]
[1742162148321,0.00664124,82921.0,82920.0,0.204016]
[1742162148483,0.001,82921.0,82920.0,0.204016]
[1742162148678,0.00664124,82921.0,82920.0,0.204016]
[1742162149270,0.00564124,82921.0,82920.0,0.204016]
[1742162149898,0.00464124,82921.0,82920.0,0.204016]
[1742162150093,0.00464124,82921.0,82920.0,0.205016]
[1742162150294,0.0003386,82925.0,82924.0,0.205006]
[1742162151593,0.0003386,82925.0,82924.0,1.705006]
[1742162151820,0.0013386,82925.0,82924.0,1.705006]
[1742162153184,0.0003386,82925.0,82924.0,1.709006]
[1742162156683,0.0003386,82925.0,82924.0,1.790806]
[1742162161697,0.0003386,82925.0,82924.0,0.209006]
[1742162161911,0.0003386,82925.0,82924.0,0.004]
[1742162162099,0.2053426,82925.0,82924.0,0.004]
[1742162162299,0.21151936,82925.0,82924.0,0.004]
[1742162163538,0.382024,82925.0,82924.0,0.004]
[1742162163743,0.192966,82917.0,82913.0,0.192971]
[1742162163942,0.192963,82918.0,82914.0,0.01206]
[1742162164145,0.00466867,82916.0,82914.0,0.01206]
[1742162164351,0.01890234,82917.0,82911.0,0.192977]
[1742162164556,0.00466867,82915.0,82911.0,0.205038]
[1742162164764,0.01890234,82917.0,82915.0,0.192966]
[1742162164937,0.01890234,82917.0,82916.0,0.192966]
[1742162165536,0.01890234,82917.0,82915.0,0.205026]
[1742162165711,0.01890234,82917.0,82914.0,0.205026]
[1742162165920,0.192978,82911.0,82908.0,0.192983]
[1742162166075,0.205041,82910.0,82902.0,0.192996]
[1742162166256,0.192988,82907.0,82903.0,0.192995]
[1742162166460,0.012061,82908.0,82902.0,0.01218596]
[1742162166971,0.205035,82912.0,82907.0,0.012061]
[1742162167161,0.19298,82910.0,82907.0,0.192987]
[1742162167370,0.01206,82914.0,82902.0,0.00012396]
[1742162167371,0.192996,82903.0,82902.0,0.00012396]
[1742162167563,0.20656602,82903.0,82902.0,0.00312396]
[1742162167738,0.205058,82903.0,82902.0,0.00312396]
[1742162168159,0.205058,82903.0,82902.0,0.00012396]
[1742162169343,0.192994,82904.0,82902.0,0.00012396]
[1742162169546,0.205058,82903.0,82902.0,0.00012396]
[1742162170169,0.205058,82903.0,82902.0,0.00212396]
[1742162170715,0.22396363,82903.0,82902.0,0.00212396]
[1742162171069,0.22396363,82903.0,82902.0,0.00012396]
[1742162171070,0.21190163,82903.0,82902.0,0.00012396]
[1742162171426,0.21190163,82903.0,82902.0,0.00212396]
[1742162172569,0.22396363,82903.0,82902.0,0.00212396]
[1742162176208,0.01890563,82903.0,82902.0,0.00212396]
[1742162176412,0.01890563,82903.0,82902.0,0.20718396]
[1742162176977,0.01890563,82903.0,82902.0,1.70718396]
[1742162177178,0.17050464,82909.0,82908.0,0.205045]
[1742162177380,0.0009816,82919.0,82918.0,0.205021]
[1742162177756,0.0009816,82919.0,82918.0,0.282121]
[1742162177757,0.00462025,82919.0,82918.0,0.282121]
[1742162177964,0.17084324,82925.0,82924.0,0.205006]
[1742162178457,0.17546349,82925.0,82924.0,0.205006]
[1742162179068,0.17084324,82925.0,82924.0,0.205006]
[1742162179226,0.17546349,82925.0,82924.0,0.205006]
[1742162180489,0.19436467,82925.0,82924.0,0.205006]
[1742162181597,0.17546349,82925.0,82924.0,0.205006]
[1742162182051,0.17084324,82925.0,82924.0,0.205006]
[1742162184360,0.0003386,82925.0,82924.0,0.205006]
[1742162184503,0.01923869,82925.0,82924.0,0.205006]
[1742162189481,0.01923869,82925.0,82924.0,1.705006]
[1742162189896,0.01923869,82925.0,82924.0,0.205006]
[1742162190301,0.0003386,82925.0,82924.0,0.205006]
[1742162191979,0.00499966,82925.0,82924.0,0.205006]
[1742162192190,0.0003386,82925.0,82921.0,0.205009]
[1742162192370,0.00499966,82925.0,82920.0,0.192957]
[1742162192575,0.19295,82923.0,82919.0,0.192959]
[1742162193091,0.19761506,82922.0,82919.0,0.192959]
[1742162193682,0.192955,82921.0,82919.0,0.192959]
[1742162193903,0.01206,82912.0,82908.0,0.192983]
[1742162194255,0.012059,82921.0,82912.0,0.01206]
[1742162194256,0.205023,82918.0,82912.0,0.01206]
[1742162194460,0.192964,82917.0,82913.0,0.205032]
[1742162194742,0.01671562,82917.0,82912.0,0.01206]
[1742162194899,0.192967,82916.0,82914.0,0.19297]
[1742162195098,0.205024,82917.0,82914.0,0.19297]
[1742162195303,0.00465562,82916.0,82914.0,0.19297]
[1742162195502,0.00465562,82916.0,82915.0,0.192968]
[1742162195891,0.192963,82918.0,82915.0,0.192968]
[1742162196113,0.00465562,82917.0,82915.0,0.192968]
[1742162196697,0.00465562,82917.0,82915.0,0.193968]
[1742162196913,0.00465562,82917.0,82916.0,0.192966]
[1742162197149,0.192959,82919.0,82916.0,0.192966]
[1742162197345,0.00465562,82917.0,82916.0,0.192966]
[1742162197551,0.192959,82919.0,82916.0,0.192966]
[1742162197751,0.00465562,82917.0,82916.0,0.192966]
[1742162197958,0.012059,82922.0,82916.0,0.01206]
[1742162198185,0.00465562,82917.0,82916.0,0.205026]
[1742162198375,0.192957,82920.0,82917.0,0.192962]
[1742162198603,0.00465562,82917.0,82916.0,0.205026]
[1742162198774,0.19296,82919.0,82916.0,0.205026]
[1742162198957,0.00465562,82917.0,82916.0,0.205026]
[1742162199158,0.19296,82919.0,82917.0,0.192963]
[1742162199361,0.192957,82920.0,82917.0,0.192963]
[1742162199561,0.193957,82920.0,82917.0,0.192963]
[1742162200007,0.192957,82920.0,82917.0,0.192963]
[1742162200388,0.19296,82919.0,82916.0,0.2051953]
[1742162200585,0.192964,82917.0,82916.0,0.0001693]
[1742162200804,0.192962,82918.0,82916.0,0.0001693]
[1742162201010,0.192962,82918.0,82916.0,0.1931343]
[1742162201410,0.192959,82919.0,82916.0,0.1931343]
[1742162201638,0.192957,82920.0,82917.0,0.192962]
[1742162201810,0.192961,82919.0,82916.0,0.1931333]
[1742162202134,0.21186294,82919.0,82916.0,0.1931333]
[1742162202336,0.192962,82918.0,82916.0,0.0001693]